fUSD/lending_fUSD_20240422
["ID","MTS","AMOUNT","RATE_DAILY","PERIOD"]
[323218687,1713817943129,-1663.91,0.00015342,2]
[323218688,1713817943138,-1215.57,0.00015342,2]
[323218689,1713817943147,-503.13195192,0.00015342,2]
[323218690,1713817943157,-500.0,0.00015342,2]
[323218691,1713817943166,-500.0,0.00015342,2]
[323218692,1713817943175,-500.0,0.00015342,2]
[323218693,1713817943184,-1013.21,0.00015342,2]
[323218694,1713817943193,-500.56833482,0.00015342,2]
[323218695,1713817943202,-500.0,0.00015342,2]
[323218696,1713817943211,-503.60351478,0.00015342,2]
[323218697,1713817943220,-1496.62,0.00015342,2]
[323218698,1713817943229,-781.7,0.00015342,2]
[323218699,1713817943238,-1208.61,0.00015342,2]
[323218700,1713817943247,-1291.68,0.00015342,2]
[323218701,1713817943256,-500.0,0.00015342,2]
[323218702,1713817943265,-501.34543254,0.00015342,2]
[323218703,1713817943274,-1167.1,0.00015342,2]
[323218704,1713817943283,-503.3062629,0.00015342,2]
[323218705,1713817943292,-636.48,0.00015342,2]
[323218706,1713817943301,-501.52582648,0.00015342,2]
[323218707,1713817943310,-503.13204161,0.00015342,2]
[323218708,1713817943318,-979.58,0.00015342,2]
[323218709,1713817943327,-751.72,0.00015342,2]
[323218710,1713817943336,-1192.84,0.00015342,2]
[323218711,1713817943346,-507.91,0.00015342,2]
[323218712,1713817943356,-1367.4,0.00015342,2]
[323218713,1713817943366,-1643.75,0.00015342,2]
[323218714,1713817943377,-525.05,0.00015342,2]
[323218715,1713817943386,-1037.47,0.00015342,2]
[323218716,1713817943395,-500.0,0.00015342,2]
[323218717,1713817943404,-535.15,0.00015342,2]
[323218718,1713817943413,-1478.09,0.00015342,2]
[323218719,1713817943422,-500.0,0.00015342,2]
[323218720,1713817943430,-504.89,0.00015342,2]
[323218721,1713817943439,-627.98,0.00015342,2]
[323218722,1713817943448,-1198.94,0.00015342,2]
[323218723,1713817943458,-849.45,0.00015342,2]
[323218724,1713817943468,-1578.31,0.00015342,2]
[323218725,1713817943477,-2383.31,0.00015342,2]
[323218726,1713817943486,-218.74433541,0.00015342,2]
[323218727,1713817943495,-2746.92,0.00015342,2]
[323218728,1713817943504,-500.0,0.00015342,2]
[323218729,1713817943512,-500.0,0.00015342,2]
[323218730,1713817943522,-500.0,0.00015342,2]
[323218731,1713817943531,-1045.49,0.00015342,2]
[323218732,1713817943540,-500.0,0.00015342,2]
[323218733,1713817943549,-1276.4,0.00015342,2]
[323218734,1713817943558,-1445.62,0.00015342,2]
[323218735,1713817943567,-1072.72,0.00015342,2]
[323218736,1713817943575,-1106.72,0.00015342,2]
[323218737,1713817943584,-500.0,0.00015342,2]
[323218738,1713817943593,-500.0,0.00015342,2]
[323218739,1713817943602,-3284.68,0.00015342,2]
[323218740,1713817943611,-500.0,0.00015342,2]
[323218741,1713817943620,-2296.08,0.00015342,2]
[323218742,1713817943629,-851.02,0.00015342,2]
[323218743,1713817943638,-501.82552468,0.00015342,2]
[323218744,1713817943646,-500.0,0.00015342,2]
[323218745,1713817943655,-788.12,0.00015342,2]
[323218746,1713817943664,-1533.64,0.00015342,2]
[323218747,1713817943673,-2404.29,0.00015342,2]
[323218748,1713817943682,-1657.26,0.00015342,2]
[323218749,1713817943691,-500.0,0.00015342,2]
[323218750,1713817943700,-500.0,0.00015342,2]
[323218751,1713817943709,-2538.83,0.00015342,2]
[323218752,1713817943718,-500.0,0.00015342,2]
[323218753,1713817943727,-500.0,0.00015342,2]
[323218754,1713817943736,-552.91,0.00015342,2]
[323218755,1713817943746,-1596.02,0.00015342,2]
[323218756,1713817943755,-1577.46,0.00015342,2]
[323218757,1713817943764,-500.0,0.00015342,2]
[323218758,1713817943773,-1894.81,0.00015342,2]
[323218759,1713817943783,-2000.81,0.00015342,2]
[323218760,1713817943792,-1468.28,0.00015342,2]
[323218761,1713817943801,-595.04,0.00015342,2]
[323218762,1713817943810,-1219.08,0.00015342,2]
[323218763,1713817943819,-881.21,0.00015342,2]
[323218764,1713817943828,-2218.86,0.00015342,2]
[323218765,1713817943838,-533.19,0.00015342,2]
[323218766,1713817943847,-504.43294167,0.00015342,2]
[323218767,1713817943856,-500.0,0.00015342,2]
[323218768,1713817943865,-934.67,0.00015342,2]
[323218769,1713817943878,-525.62,0.00015342,2]
[323218770,1713817943890,-500.0,0.00015342,2]
[323218771,1713817943900,-702.91,0.00015342,2]
[323218772,1713817943910,-3676.74,0.00015342,2]
[323218773,1713817943920,-548.67,0.00015342,2]
[323218774,1713817943931,-500.0,0.00015342,2]
[323218775,1713817943940,-500.0,0.00015342,2]
[323218776,1713817943950,-1527.36,0.00015342,2]
[323218777,1713817943959,-2497.52,0.00015342,2]
[323218778,1713817943969,-1077.98,0.00015342,2]
[323218779,1713817943978,-1214.09,0.00015342,2]
[323218780,1713817943987,-960.51,0.00015342,2]
[323218781,1713817943996,-1969.14,0.00015342,2]
[323218782,1713817944006,-506.829144,0.00015342,2]
[323218783,1713817944015,-1099.35,0.00015342,2]
[323218784,1713817944024,-1706.31,0.00015342,2]
[323218785,1713817944033,-1214.51,0.00015342,2]
[323218786,1713817944043,-837.97,0.00015342,2]
[323218787,1713817944052,-500.0,0.00015342,2]
[323218788,1713817944062,-500.0,0.00015342,2]
[323218789,1713817944071,-1339.69,0.00015342,2]
[323218790,1713817944081,-503.42238712,0.00015342,2]
[323218791,1713817944090,-2687.48,0.00015342,2]
[323218792,1713817944099,-1917.71,0.00015342,2]
[323218793,1713817944109,-500.0,0.00015342,2]
[323218794,1713817944119,-500.0,0.00015342,2]
[323218795,1713817944128,-795.76,0.00015342,2]
[323218796,1713817944138,-500.0,0.00015342,2]
[323218797,1713817944147,-500.0,0.00015342,2]
[323218798,1713817944157,-421.36668814,0.00015342,2]
[323218799,1713817944166,-1479.38,0.00015342,2]
[323218800,1713817944175,-1253.15,0.00015342,2]
[323218801,1713817944185,-946.21,0.00015342,2]
[323218802,1713817944194,-755.1,0.00015342,2]
[323218803,1713817944203,-500.0,0.00015342,2]
[323218804,1713817944212,-705.28,0.00015342,2]
[323218805,1713817944221,-856.04,0.00015342,2]
[323218806,1713817944230,-500.0,0.00015342,2]
[323218807,1713817944240,-1065.24,0.00015342,2]
[323218808,1713817944249,-1085.95,0.00015342,2]
[323218809,1713817944258,-586.95,0.00015342,2]
[323218810,1713817944268,-3909.96,0.00015342,2]
[323218811,1713817944281,-806.76,0.00015342,2]
[323218812,1713817944290,-1318.24,0.00015342,2]
[323218813,1713817944301,-1254.05,0.00015342,2]
[323218814,1713817944311,-500.0,0.00015342,2]
[323218815,1713817944321,-500.0,0.00015342,2]
[323218816,1713817944330,-502.06231761,0.00015342,2]
[323218817,1713817944339,-956.54,0.00015342,2]
[323218818,1713817944348,-1335.71,0.00015342,2]
[323218819,1713817944356,-1092.89,0.00015342,2]
[323218820,1713817944366,-1047.55,0.00015342,2]
[323218821,1713817944375,-605.32,0.00015342,2]
[323218822,1713817944384,-503.73178644,0.00015342,2]
[323218823,1713817944396,-500.0,0.00015342,2]
[323218824,1713817944405,-1295.55,0.00015342,2]
[323218825,1713817944414,-630.63,0.00015342,2]
[323218826,1713817944422,-2415.41,0.00015342,2]
[323218827,1713817944435,-633.15,0.00015342,2]
[323218828,1713817944445,-2338.02,0.00015342,2]
[323218829,1713817944454,-1073.37,0.00015342,2]
[323218830,1713817944463,-500.0,0.00015342,2]
[323218831,1713817944472,-723.42,0.00015342,2]
[323218832,1713817944482,-988.41,0.00015342,2]
[323218833,1713817944492,-500.0,0.00015342,2]
[323218834,1713817944501,-1045.44,0.00015342,2]
[323218835,1713817944511,-2293.72,0.00015342,2]
[323218836,1713817944521,-571.74395856,0.00015342,2]
[323218837,1713817944530,-1265.46,0.00015342,2]
[323218838,1713817944540,-503.43299487,0.00015342,2]
[323218839,1713817944549,-561.76,0.00015342,2]
[323218840,1713817944558,-648.54,0.00015342,2]
[323218841,1713817944567,-500.0,0.00015342,2]
[323218842,1713817944576,-500.0,0.00015342,2]
[323218843,1713817944586,-1423.76,0.00015342,2]
[323218844,1713817944596,-500.0,0.00015342,2]
[323218845,1713817944605,-754.54,0.00015342,2]
[323218846,1713817944615,-500.0,0.00015342,2]
[323218847,1713817944625,-766.12,0.00015342,2]
[323218848,1713817944634,-1066.26,0.00015342,2]
[323218849,1713817944644,-1476.18,0.00015342,2]
[323218850,1713817944654,-730.36,0.00015342,2]
[323218851,1713817944664,-630.54,0.00015342,2]
[323218852,1713817944675,-1555.08,0.00015342,2]
[323218853,1713817944685,-1064.89,0.00015342,2]
[323218854,1713817944695,-1952.11,0.00015342,2]
[323218855,1713817944705,-909.66,0.00015342,2]
[323218856,1713817944714,-500.0,0.00015342,2]
[323218857,1713817944723,-500.0,0.00015342,2]
[323218858,1713817944733,-801.08,0.00015342,2]
[323218859,1713817944742,-2542.4,0.00015342,2]
[323218860,1713817944751,-1323.06,0.00015342,2]
[323218861,1713817944760,-580.66,0.00015342,2]
[323218862,1713817944773,-1009.86,0.00015342,2]
[323218863,1713817944782,-685.24,0.00015342,2]
[323218864,1713817944791,-996.9,0.00015342,2]
[323218865,1713817944800,-500.0,0.00015342,2]
[323218866,1713817944809,-751.49,0.00015342,2]
[323218867,1713817944818,-1254.19,0.00015342,2]
[323218868,1713817944828,-860.39,0.00015342,2]
[323218869,1713817944837,-4409.84,0.00015342,2]
[323218870,1713817944846,-513.13,0.00015342,2]
[323218871,1713817944856,-605.11,0.00015342,2]
[323218872,1713817944866,-1437.23,0.00015342,2]
[323218873,1713817944880,-1024.83,0.00015342,2]
[323218874,1713817944890,-794.18,0.00015342,2]
[323218875,1713817944899,-1182.95,0.00015342,2]
[323218876,1713817944908,-1314.8,0.00015342,2]
[323218877,1713817944918,-500.0,0.00015342,2]
[323218878,1713817944928,-500.0,0.00015342,2]
[323218879,1713817944938,-1869.66,0.00015342,2]
[323218880,1713817944947,-983.81,0.00015342,2]
[323218881,1713817944958,-914.73,0.00015342,2]
[323218882,1713817944969,-876.01,0.00015342,2]
[323218883,1713817944979,-500.0,0.00015342,2]
[323218884,1713817944989,-878.84,0.00015342,2]
[323218885,1713817944998,-541.31,0.00015342,2]
[323218886,1713817945008,-894.0,0.00015342,2]
[323218887,1713817945019,-2061.61,0.00015342,2]
[323218888,1713817945028,-1403.67,0.00015342,2]
[323218889,1713817945038,-1124.13,0.00015342,2]
[323218890,1713817945047,-1325.09,0.00015342,2]
[323218891,1713817945056,-500.0,0.00015342,2]
[323218892,1713817945065,-775.89,0.00015342,2]
[323218893,1713817945075,-1196.82,0.00015342,2]
[323218894,1713817945084,-1211.22,0.00015342,2]
[323218895,1713817945094,-501.27517555,0.00015342,2]
[323218896,1713817945103,-1451.51,0.00015342,2]
[323218897,1713817945113,-151.52633294,0.00015342,2]
[323218898,1713817945122,-1680.65,0.00015342,2]
[323218899,1713817945131,-500.0,0.00015342,2]
[323218900,1713817945141,-1636.05,0.00015342,2]
[323218901,1713817945150,-922.47,0.00015342,2]
[323218902,1713817945160,-500.0,0.00015342,2]
[323218903,1713817945169,-725.28,0.00015342,2]
[323218904,1713817945179,-500.0,0.00015342,2]
[323218905,1713817945188,-500.0,0.00015342,2]
[323218906,1713817945198,-816.4,0.00015342,2]
[323218907,1713817945207,-526.67,0.00015342,2]
[323218908,1713817945217,-500.0,0.00015342,2]
[323218909,1713817945227,-500.0,0.00015342,2]
[323218910,1713817945237,-500.0,0.00015342,2]
[323218911,1713817945247,-754.42,0.00015342,2]
[323218912,1713817945256,-1131.8,0.00015342,2]
[323218913,1713817945267,-500.0,0.00015342,2]
[323218914,1713817945277,-504.14787056,0.00015342,2]
[323218915,1713817945286,-1402.5,0.00015342,2]
[323218916,1713817945295,-500.0,0.00015342,2]
[323218917,1713817945304,-532.25,0.00015342,2]
[323218918,1713817945314,-787.9,0.00015342,2]
[323218919,1713817945323,-500.0,0.00015342,2]
[323218920,1713817945332,-559.84,0.00015342,2]
[323218921,1713817945342,-1069.11,0.00015342,2]
[323218922,1713817945351,-1256.58,0.00015342,2]
[323218923,1713817945360,-628.34,0.00015342,2]
[323218924,1713817945369,-500.0,0.00015342,2]
[323218925,1713817945378,-624.97,0.00015342,2]
[323218926,1713817945387,-500.0,0.00015342,2]
[323218927,1713817945397,-1806.23,0.00015342,2]
[323218928,1713817945406,-1450.35,0.00015342,2]
[323218929,1713817945415,-1359.54,0.00015342,2]
[323218930,1713817945424,-500.0,0.00015342,2]
[323218931,1713817945434,-502.81,0.00015342,2]
[323218932,1713817945443,-1191.78,0.00015342,2]
[323218933,1713817945452,-888.12,0.00015342,2]
[323218934,1713817945462,-578.9,0.00015342,2]
[323218935,1713817945471,-1855.61,0.00015342,2]
[323218936,1713817945480,-500.0,0.00015342,2]
[323218937,1713817945489,-583.38,0.00015342,2]
[323218938,1713817945498,-500.0,0.00015342,2]
[323218939,1713817945507,-500.0,0.00015342,2]
[323218940,1713817945517,-1313.44,0.00015342,2]
[323218941,1713817945526,-1448.43,0.00015342,2]
[323218942,1713817945535,-500.0,0.00015342,2]
[323218943,1713817945544,-500.0,0.00015342,2]
[323218944,1713817945554,-500.0,0.00015342,2]
[323218945,1713817945563,-500.0,0.00015342,2]
[323218946,1713817945572,-1028.72,0.00015342,2]
[323218947,1713817945581,-595.0,0.00015342,2]
[323218948,1713817945591,-547.89,0.00015342,2]
[323218949,1713817945600,-1641.26,0.00015342,2]
[323218950,1713817945609,-500.0,0.00015342,2]
[323218951,1713817945619,-1768.32,0.00015342,2]
[323218952,1713817945628,-500.0,0.00015342,2]
[323218953,1713817945638,-3339.2,0.00015342,2]
[323218954,1713817945647,-668.1,0.00015342,2]
[323218955,1713817945656,-863.77,0.00015342,2]
[323218956,1713817945665,-500.66125473,0.00015342,2]
[323218957,1713817945675,-500.0,0.00015342,2]
[323218958,1713817945684,-1124.07,0.00015342,2]
[323218959,1713817945694,-557.13,0.00015342,2]
[323218960,1713817945703,-500.0,0.00015342,2]
[323218961,1713817945712,-562.12,0.00015342,2]
[323218962,1713817945722,-501.69571805,0.00015342,2]
[323218963,1713817945731,-840.96,0.00015342,2]
[323218964,1713817945740,-816.6,0.00015342,2]
[323218965,1713817945749,-500.0,0.00015342,2]
[323218966,1713817945759,-500.0,0.00015342,2]
[323218967,1713817945769,-811.15,0.00015342,2]
[323218968,1713817945778,-1876.65,0.00015342,2]
[323218969,1713817945788,-1275.39,0.00015342,2]
[323218970,1713817945798,-500.0,0.00015342,2]
[323218971,1713817945807,-1190.54,0.00015342,2]
[323218972,1713817945817,-1082.13,0.00015342,2]
[323218973,1713817945829,-1247.63,0.00015342,2]
[323218974,1713817945838,-2584.59,0.00015342,2]
[323218975,1713817945847,-754.66,0.00015342,2]
[323218976,1713817945857,-1169.33,0.00015342,2]
[323218977,1713817945867,-3329.52,0.00015342,2]
[323218978,1713817945881,-500.0,0.00015342,2]
[323218979,1713817945892,-621.96,0.00015342,2]
[323218980,1713817945903,-500.0,0.00015342,2]
[323218981,1713817945914,-500.0,0.00015342,2]
[323218982,1713817945924,-845.41,0.00015342,2]
[323218983,1713817945934,-755.77,0.00015342,2]
[323218984,1713817945944,-500.0,0.00015342,2]
[323218985,1713817945954,-973.92,0.00015342,2]
[323218986,1713817945964,-1019.33,0.00015342,2]
[323218987,1713817945973,-549.92,0.00015342,2]
[323218988,1713817945983,-500.0,0.00015342,2]
[323218989,1713817945993,-500.0,0.00015342,2]
[323218990,1713817946003,-1233.41,0.00015342,2]
[323218991,1713817946013,-524.29,0.00015342,2]
[323218992,1713817946023,-730.26,0.00015342,2]
[323218993,1713817946033,-1250.58,0.00015342,2]
[323218994,1713817946042,-500.0,0.00015342,2]
[323218995,1713817946053,-590.06,0.00015342,2]
[323218996,1713817946062,-500.0,0.00015342,2]
[323218997,1713817946073,-1827.41,0.00015342,2]
[323218998,1713817946083,-744.02,0.00015342,2]
[323218999,1713817946094,-1751.5,0.00015342,2]
[323219000,1713817946103,-500.0,0.00015342,2]
[323219001,1713817946114,-500.0,0.00015342,2]
[323219002,1713817946123,-1503.69,0.00015342,2]
[323219003,1713817946133,-553.81705868,0.00015342,2]
[323219004,1713817946143,-1054.98,0.00015342,2]
[323219005,1713817946152,-500.0,0.00015342,2]
[323219006,1713817946162,-527.77,0.00015342,2]
[323219007,1713817946171,-500.0,0.00015342,2]
[323219008,1713817946181,-1757.63,0.00015342,2]
[323219009,1713817946190,-1390.28,0.00015342,2]
[323219010,1713817946201,-543.73,0.00015342,2]
[323219011,1713817946210,-800.72,0.00015342,2]
[323219012,1713817946220,-560.39,0.00015342,2]
[323219013,1713817946230,-710.37,0.00015342,2]
[323219014,1713817946240,-8671.29,0.00015342,2]
[323219015,1713817946250,-2737.44,0.00015342,2]
[323219016,1713817946259,-500.0,0.00015342,2]
[323219017,1713817946270,-1220.79,0.00015342,2]
[323219018,1713817946279,-991.82,0.00015342,2]
[323219019,1713817946289,-500.0,0.00015342,2]
[323219020,1713817946299,-4012.68,0.00015342,2]
[323219021,1713817946309,-3731.89,0.00015342,2]
[323219022,1713817946318,-1170.18,0.00015342,2]
[323219023,1713817946327,-500.0,0.00015342,2]
[323219024,1713817946337,-1044.89,0.00015342,2]
[323219025,1713817946347,-1190.98,0.00015342,2]
[323219026,1713817946356,-500.0,0.00015342,2]
[323219027,1713817946366,-773.35,0.00015342,2]
[323219028,1713817946375,-12096.17,0.00015342,2]
[323219029,1713817946385,-1727.84,0.00015342,2]
[323219030,1713817946395,-508.4,0.00015342,2]
[323219031,1713817946405,-938.55,0.00015342,2]
[323219032,1713817946415,-1147.24,0.00015342,2]
[323219033,1713817946424,-20433.91,0.00015342,2]
[323219034,1713817946434,-500.0,0.00015342,2]
[323219035,1713817946443,-1529.34,0.00015342,2]
[323219036,1713817946453,-4437.11,0.00015342,2]
[323219037,1713817946462,-3682.04,0.00015342,2]
[323219038,1713817946474,-4397.02,0.00015342,2]
[323219039,1713817946484,-500.0,0.00015342,2]
[323219040,1713817946495,-1045.51,0.00015342,2]
[323219041,1713817946506,-500.89117335,0.00015342,2]
[323219042,1713817946517,-502.61,0.00015342,2]
[323219043,1713817946527,-500.0,0.00015342,2]
[323219044,1713817946537,-500.0,0.00015342,2]
[323219045,1713817946547,-2939.82,0.00015342,2]
[323219046,1713817946557,-4066.35,0.00015342,2]
[323219047,1713817946567,-500.0,0.00015342,2]
[323219048,1713817946577,-9104.68,0.00015342,2]
[323219049,1713817946587,-2694.54,0.00015342,2]
[323219050,1713817946597,-606.84,0.00015342,2]
[323219051,1713817946607,-675.73,0.00015342,2]
[323219052,1713817946616,-1227.83,0.00015342,2]
[323219053,1713817946626,-13312.5,0.00015342,2]
[323219054,1713817946636,-4924.18,0.00015342,2]
[323219055,1713817946645,-843.14,0.00015342,2]
[323219056,1713817946655,-500.0,0.00015342,2]
[323219057,1713817946665,-752.32,0.00015342,2]
[323219058,1713817946675,-500.0,0.00015342,2]
[323219059,1713817946685,-2295.67,0.00015342,2]
[323219060,1713817946696,-1329.4,0.00015342,2]
[323219061,1713817946708,-500.0,0.00015342,2]
[323219062,1713817946718,-19623.04,0.00015342,2]
[323219063,1713817946728,-500.0,0.00015342,2]
[323219064,1713817946738,-500.0,0.00015342,2]
[323219065,1713817946749,-500.0,0.00015342,2]
[323219066,1713817946759,-4571.21,0.00015342,2]
[323219067,1713817946770,-696.75,0.00015342,2]
[323219068,1713817946779,-1065.73,0.00015342,2]
[323219069,1713817946789,-8822.49,0.00015342,2]
[323219070,1713817946800,-4272.21,0.00015342,2]
[323219071,1713817946810,-2754.05,0.00015342,2]
[323219072,1713817946820,-2238.45,0.00015342,2]
[323219073,1713817946829,-500.0,0.00015342,2]
[323219074,1713817946839,-500.0,0.00015342,2]
[323219075,1713817946848,-1968.05,0.00015342,2]
[323219076,1713817946859,-17508.63,0.00015342,2]
[323219077,1713817946869,-5023.5,0.00015342,2]
[323219078,1713817946885,-975.21,0.00015342,2]
[323219079,1713817946895,-1827.86,0.00015342,2]
[323219080,1713817946908,-5798.87,0.00015342,2]
[323219081,1713817946927,-5213.97,0.00015342,2]
[323219082,1713817946943,-4518.5,0.00015342,2]
[323219083,1713817946954,-3464.58,0.00015342,2]
[323219084,1713817946964,-1356.45,0.00015342,2]
[323219085,1713817946974,-533.11,0.00015342,2]
[323219086,1713817946983,-1424.13,0.00015342,2]
[323219087,1713817946993,-7647.7,0.00015342,2]
[323219088,1713817947002,-980.74,0.00015342,2]
[323219089,1713817947012,-500.0,0.00015342,2]
[323219090,1713817947022,-866.39,0.00015342,2]
[323219091,1713817947032,-6333.04,0.00015342,2]
[323219092,1713817947042,-1130.77,0.00015342,2]
[323219093,1713817947052,-1043.08,0.00015342,2]
[323219094,1713817947063,-500.0,0.00015342,2]
[323219095,1713817947073,-4957.21,0.00015342,2]
[323219096,1713817947083,-621.48774839,0.00015342,2]
[323219097,1713817947093,-500.0,0.00015342,2]
[323219098,1713817947103,-972.86,0.00015342,2]
[323219099,1713817947114,-1902.61,0.00015342,2]
[323219100,1713817947125,-17087.41,0.00015342,2]
[323219101,1713817947135,-2426.59,0.00015342,2]
[323219102,1713817947145,-4288.29,0.00015342,2]
[323219103,1713817947156,-1173.49,0.00015342,2]
[323219104,1713817947166,-8918.06,0.00015342,2]
[323219105,1713817947176,-8646.75,0.00015342,2]
[323219106,1713817947186,-500.0,0.00015342,2]
[323219107,1713817947197,-663.73,0.00015342,2]
[323219108,1713817947207,-5848.77,0.00015342,2]
[323219109,1713817947217,-500.0,0.00015342,2]
[323219110,1713817947228,-14690.22,0.00015342,2]
[323219111,1713817947238,-1312.73,0.00015342,2]
[323219112,1713817947248,-506.74,0.00015342,2]
[323219113,1713817947258,-2234.61,0.00015342,2]
[323219114,1713817947268,-648.66,0.00015342,2]
[323219115,1713817947278,-10938.94,0.00015342,2]
[323219116,1713817947288,-500.0,0.00015342,2]
[323219117,1713817947298,-1962.25,0.00015342,2]
[323219118,1713817947308,-2886.61,0.00015342,2]
[323219119,1713817947320,-579.41,0.00015342,2]
[323219120,1713817947331,-1997.87,0.00015342,2]
[323219121,1713817947341,-500.0,0.00015342,2]
[323219122,1713817947351,-53885.3,0.00015342,2]
[323219123,1713817947361,-1244.34,0.00015342,2]
[323219124,1713817947372,-4051.64,0.00015342,2]
[323219125,1713817947382,-1590.37,0.00015342,2]
[323219126,1713817947391,-7669.72,0.00015342,2]
[323219127,1713817947402,-2236.17,0.00015342,2]
[323219128,1713817947412,-2521.35,0.00015342,2]
[323219129,1713817947422,-212.2378164,0.00015342,2]
[323219130,1713817947432,-500.0,0.00015342,2]
[323219131,1713817947444,-1645.21,0.00015342,2]
[323219132,1713817947454,-1544.16,0.00015342,2]
[323219133,1713817947464,-1510.42,0.00015342,2]
[323219134,1713817947474,-1343.13,0.00015342,2]
[323219135,1713817947484,-500.0,0.00015342,2]
[323219136,1713817947495,-1028.46,0.00015342,2]
[323219137,1713817947505,-5067.75,0.00015342,2]
[323219138,1713817947515,-803.65,0.00015342,2]
[323219139,1713817947525,-754.93,0.00015342,2]
[323219140,1713817947535,-26471.53,0.00015342,2]
[323219141,1713817947545,-401.60946679,0.00015342,2]
[323219142,1713817947555,-1051.95,0.00015342,2]
[323219143,1713817947565,-1582.45,0.00015342,2]
[323219144,1713817947575,-11812.41,0.00015342,2]
[323219145,1713817947585,-1393.84,0.00015342,2]
[323219146,1713817947595,-500.0,0.00015342,2]
[323219147,1713817947605,-807.31,0.00015342,2]
[323219148,1713817947615,-1564.41,0.00015342,2]
[323219149,1713817947624,-3864.45,0.00015342,2]
[323219150,1713817947634,-3718.52,0.00015342,2]
[323219151,1713817947644,-500.0,0.00015342,2]
[323219152,1713817947655,-5811.41,0.00015342,2]
[323219153,1713817947665,-500.0,0.00015342,2]
[323219154,1713817947676,-6037.29,0.00015342,2]
[323219155,1713817947686,-1502.85,0.00015342,2]
[323219156,1713817947696,-2889.09,0.00015342,2]
[323219157,1713817947706,-6389.88,0.00015342,2]
[323219158,1713817947717,-669.89,0.00015342,2]
[323219159,1713817947728,-500.0,0.00015342,2]
[323219160,1713817947738,-1991.04,0.00015342,2]
[323219161,1713817947748,-500.0,0.00015342,2]
[323219162,1713817947758,-5057.75,0.00015342,2]
[323219163,1713817947768,-500.0,0.00015342,2]
[323219164,1713817947778,-2149.82,0.00015342,2]
[323219165,1713817947789,-2095.61,0.00015342,2]
[323219166,1713817947800,-2535.93,0.00015342,2]
[323219167,1713817947810,-610.24,0.00015342,2]
[323219168,1713817947820,-500.0,0.00015342,2]
[323219169,1713817947830,-500.0,0.00015342,2]
[323219170,1713817947840,-558.4,0.00015342,2]
[323219171,1713817947851,-9434.59,0.00015342,2]
[323219172,1713817947861,-1851.7,0.00015342,2]
[323219173,1713817947872,-6735.46,0.00015342,2]
[323219174,1713817948200,-1148.52,0.00015342,2]
[323219175,1713817948212,-500.0,0.00015342,2]
[323219176,1713817948222,-2751.02,0.00015342,2]
[323219177,1713817948232,-500.0,0.00015342,2]
[323219178,1713817948242,-2872.2,0.00015342,2]
[323219179,1713817948253,-560.07,0.00015342,2]
[323219180,1713817948263,-2848.87,0.00015342,2]
[323219181,1713817948273,-500.0,0.00015342,2]
[323219182,1713817948283,-4572.48,0.00015342,2]
[323219183,1713817948293,-12108.08,0.00015342,2]
[323219184,1713817948303,-4162.92,0.00015342,2]
[323219185,1713817948313,-2605.69,0.00015342,2]
[323219186,1713817948322,-505.78,0.00015342,2]